fUST/lending_fUST_20260326
["ID","MTS","AMOUNT","RATE_DAILY","PERIOD"]
[6700,1774480243809,-500.0,5e-05,2]
[6701,1774480243819,-500.0,5e-05,2]
[6702,1774480243828,-500.0,5e-05,2]
[6703,1774480243838,-500.0,5e-05,2]
[6704,1774480243847,-500.0,5e-05,2]
[6705,1774480243856,-500.0,5e-05,2]
[6706,1774480243865,-500.0,5e-05,2]
[6707,1774480243875,-500.0,5e-05,2]
[6708,1774480243884,-500.0,5e-05,2]
[6709,1774480243893,-500.0,5e-05,2]
[6710,1774480243902,-500.0,5e-05,2]
[6711,1774480243911,-500.0,5e-05,2]
[6712,1774480243920,-500.0,5e-05,2]
[6713,1774480243930,-500.0,5e-05,2]
[6714,1774480243939,-500.0,5e-05,2]
[6715,1774480243948,-500.0,5e-05,2]
[6716,1774480243958,-500.0,5e-05,2]
[6717,1774480243967,-500.0,5e-05,2]
[6718,1774480243977,-500.0,5e-05,2]
[6719,1774480243986,-642.57437045,5e-05,2]
[6720,1774480243996,-500.0,5e-05,2]
[6721,1774480244005,-500.0,5e-05,2]
[6722,1774480244015,-500.0,5e-05,2]
[6723,1774480244024,-500.0,5e-05,2]
[6724,1774480244033,-500.0,5e-05,2]
[6725,1774480244042,-500.0,5e-05,2]
[6726,1774480244051,-500.0,5e-05,2]
[6727,1774480244060,-500.0,5e-05,2]
[6728,1774480244070,-500.0,5e-05,2]
[6729,1774480244080,-500.0,5e-05,2]
[6730,1774480244089,-613.81587147,5e-05,2]
[6731,1774480244098,-500.0,5e-05,2]
[6732,1774480244107,-500.0,5e-05,2]
[6733,1774480244117,-500.0,5e-05,2]
[6734,1774480244156,-500.0,5e-05,2]
[6735,1774480244165,-500.0,5e-05,2]
[6736,1774480244175,-500.0,5e-05,2]
[6737,1774480244184,-500.0,5e-05,2]
[6738,1774480244193,-500.0,5e-05,2]
[6739,1774480244202,-500.0,5e-05,2]
[6740,1774480244211,-500.0,5e-05,2]
[6741,1774480244221,-500.0,5e-05,2]
[6742,1774480244230,-500.0,5e-05,2]
[6743,1774480244239,-500.0,5e-05,2]
[6744,1774480244249,-500.0,5e-05,2]
[6745,1774480244258,-500.0,5e-05,2]
[6746,1774480244267,-500.0,5e-05,2]
[6747,1774480244276,-500.0,5e-05,2]
[6748,1774480244285,-154.89857492,5e-05,2]
[6749,1774480244294,-500.0,5e-05,2]
[6750,1774480244304,-500.0,5e-05,2]
[6751,1774480244313,-500.0,5e-05,2]
[6752,1774480244323,-1500.0,5.016e-05,2]
[6753,1774480244332,-3292.0,5.208e-05,2]
[6754,1774480244342,-626.0,5.21e-05,2]
[6755,1774480244351,-823.0,5.21e-05,2]
[6756,1774480244360,-1000.0,5.314e-05,2]
[6757,1774480244369,-1000.0,5.361e-05,2]
[6758,1774480244378,-1000.0,5.361e-05,2]
[6759,1774480244388,-1000.0,5.361e-05,2]
[6760,1774480244397,-1000.0,5.361e-05,2]
[6761,1774480244406,-1000.0,5.361e-05,2]
[6762,1774480244416,-1000.0,5.361e-05,2]
[6763,1774480244425,-1000.0,5.361e-05,2]
[6764,1774480244434,-1000.0,5.521e-05,2]
[6765,1774480244443,-1000.0,5.521e-05,2]
[6766,1774480244453,-2000.0,5.564e-05,2]
[6767,1774480244462,-4609.0,5.729e-05,2]
[6768,1774480244472,-1152.0,5.73e-05,2]
[6769,1774480244481,-500.0,5.809e-05,2]
[6770,1774480244491,-500.0,5.809e-05,2]
[6771,1774480244500,-500.0,5.809e-05,2]
[6772,1774480244509,-1000.0,5.845e-05,2]
[6773,1774480244520,-244.0,5.845e-05,2]
[6774,1774480244529,-11733.7888297,5.888e-05,2]
[6775,1774480244539,-1500.0,5.908e-05,2]
[6776,1774480244548,-1500.0,5.908e-05,2]
[6777,1774480244557,-1500.0,5.908e-05,2]
[6778,1774480244566,-1500.0,5.908e-05,2]
[6779,1774480244576,-1448.19066664,5.908e-05,2]
[6780,1774480244586,-1500.0,5.908e-05,2]
[6781,1774480244595,-1500.0,5.908e-05,2]
[6782,1774480244604,-2760.66111976,5.935e-05,2]
[6783,1774480244618,-2625.30129943,5.935e-05,2]
[6784,1774480244630,-729.67770619,5.935e-05,2]
[6805,1774480246062,-7402.67528863,5.935e-05,2]
[6806,1774480246351,-448.41076289,5.935e-05,2]
[6807,1774480246360,-500.0,6.068e-05,2]
[6808,1774480246369,-500.0,6.068e-05,2]
[6809,1774480246378,-309.15217677,6.068e-05,2]
[6838,1774481423914,-4777.72337303,2.343e-05,2]
[6845,1774481432147,-650.6001967,2.32e-05,2]
[6847,1774481432158,-501.0,2.32e-05,2]
[6849,1774481432169,-3848.3998033,2.32e-05,2]
[6850,1774481432178,-222.27662697,2.343e-05,2]
[6852,1774481432187,-2078.01190791,2.367e-05,2]
[6859,1774481432240,-172.0621619,2.367e-05,2]
[6861,1774481432249,-300.0,2.491e-05,2]
[6863,1774481432258,-201.3478381,2.491e-05,2]
[6865,1774481432269,-998.6521619,2.491e-05,2]
[6867,1774481432279,-441.8549106,2.62e-05,2]
[6869,1774481432288,-420.0,2.74e-05,2]
[6871,1774481432297,-1680.0,2.74e-05,2]
[6873,1774481432307,-300.0,2.792e-05,2]
[6875,1774481432316,-300.0,2.792e-05,2]
[6877,1774481432325,-300.0,2.792e-05,2]
[6879,1774481432334,-300.0,2.792e-05,2]
[6881,1774481432343,-300.0,2.792e-05,2]
[6883,1774481432353,-300.0,2.792e-05,2]
[6885,1774481432362,-300.0,2.792e-05,2]
[6887,1774481432371,-300.0,2.792e-05,2]
[6889,1774481432379,-300.0,2.792e-05,2]
[6891,1774481432388,-300.0,2.792e-05,2]
[6893,1774481432398,-300.0,2.792e-05,2]
[6895,1774481432407,-300.0,2.792e-05,2]
[6897,1774481432416,-300.0,2.792e-05,2]
[6899,1774481432425,-300.0,2.792e-05,2]
[6901,1774481432434,-300.0,2.792e-05,2]
[6903,1774481432443,-587.0,3.014e-05,2]
[6905,1774481432452,-2351.0,3.014e-05,2]
[6907,1774481432461,-250.0,3.128e-05,2]
[6909,1774481432470,-823.0,3.316e-05,2]
[6911,1774481432479,-3292.0,3.316e-05,2]
[6913,1774481432488,-1152.0,3.647e-05,2]
[6915,1774481432496,-4609.0,3.647e-05,2]
[6916,1774481432505,-1613.0,4.012e-05,2]
[6918,1774481432514,-2068.0,4.012e-05,2]
[6920,1774481432523,-2258.0,4.413e-05,2]
[6922,1774481432532,-500.0,4.803e-05,2]
[6925,1774481432542,-500.0,4.803e-05,2]
[6927,1774481432551,-3162.0,4.854e-05,2]
[6929,1774481432560,-500.0,5.043e-05,2]
[6931,1774481432569,-500.0,5.043e-05,2]
[6933,1774481432578,-4427.0,5.34e-05,2]
[6935,1774481432588,-1000.0,5.351e-05,2]
[6936,1774481432597,-1000.0,5.351e-05,2]
[6942,1774481432639,-1000.0,5.4e-05,2]
[6944,1774481432648,-1000.0,5.4e-05,2]
[6946,1774481432657,-1000.0,5.4e-05,2]
[6948,1774481432666,-1000.0,5.4e-05,2]
[6950,1774481432675,-1000.0,5.4e-05,2]
[6952,1774481432684,-500.0,5.444e-05,2]
[6954,1774481432693,-572.76650832,5.444e-05,2]
[6956,1774481432702,-300.0,5.479e-05,2]
[6958,1774481432711,-1000.0,5.59e-05,2]
[6960,1774481432721,-1000.0,5.59e-05,2]
[6962,1774481432730,-500.0,5.653e-05,2]
[6964,1774481432739,-5654.43243381,5.671e-05,2]
[6971,1774481432788,-367.38335282,5.671e-05,2]
[6975,1774481432819,-662.21968911,5.671e-05,2]
[7046,1774481442087,-1185.85382244,5.614e-05,2]
[7058,1774481442255,-1000.0,5.614e-05,2]
[7059,1774481442267,-801.00540322,5.614e-05,2]
[7065,1774481443409,-608.45055747,5.614e-05,2]
[7068,1774481443573,-1404.69021687,5.614e-05,2]
[7069,1774481443583,-1986.85922566,5.671e-05,2]
[7075,1774481446425,-9382.95206908,5.671e-05,2]
[7092,1774482436207,167.284265,1.66e-05,2]
[7181,1774482638367,-5000.0,2.033e-05,2]
[7183,1774482638376,-5000.0,2.054e-05,2]
[7185,1774482638385,-167.284265,2.075e-05,2]
[7187,1774482638395,-300.0,2.116e-05,2]
[7189,1774482638404,-300.0,2.116e-05,2]
[7191,1774482638414,-300.0,2.116e-05,2]
[7193,1774482638424,-300.0,2.116e-05,2]
[7195,1774482638433,-300.0,2.116e-05,2]
[7197,1774482638442,-300.0,2.116e-05,2]
[7199,1774482638452,-300.0,2.116e-05,2]
[7201,1774482638461,-300.0,2.116e-05,2]
[7203,1774482638470,-300.0,2.116e-05,2]
[7205,1774482638479,-300.0,2.116e-05,2]
[7207,1774482638488,-300.0,2.116e-05,2]
[7209,1774482638498,-300.0,2.116e-05,2]
[7211,1774482638508,-300.0,2.116e-05,2]
[7213,1774482638518,-300.0,2.116e-05,2]
[7215,1774482638527,-300.0,2.116e-05,2]
[7217,1774482638537,-600.0,2.157e-05,2]
[7219,1774482638547,-720.0,2.373e-05,2]
[7221,1774482638557,-167.284265,2.49e-05,2]
[7223,1774482638566,-250.0,2.742e-05,2]
[7225,1774482638575,-167.284265,2.905e-05,2]
[7227,1774482638584,-167.284265,3.32e-05,2]
[7232,1774482638620,-300.0,3.69e-05,2]
[7235,1774482638634,-7402.6752887,3.728e-05,2]
[7237,1774482638643,-529.476185,3.922e-05,2]
[7239,1774482638653,-647.0,3.949e-05,2]
[7241,1774482638662,-420.0,4.059e-05,2]
[7243,1774482638671,-499.9059876,4.112e-05,2]
[7245,1774482638680,-587.0,4.465e-05,2]
[7247,1774482638689,-3444.550384,4.746e-05,2]
[7249,1774482638698,-500.0,4.793e-05,2]
[7251,1774482638707,-500.0,4.793e-05,2]
[7253,1774482638717,-500.0,4.793e-05,2]
[7255,1774482638727,-500.0,4.793e-05,2]
[7257,1774482638736,-500.0,4.793e-05,2]
[7259,1774482638745,-500.0,4.793e-05,2]
[7261,1774482638754,-500.0,4.793e-05,2]
[7263,1774482638764,-500.0,4.793e-05,2]
[7265,1774482638773,-500.0,4.793e-05,2]
[7267,1774482638782,-495.28156353,4.793e-05,2]
[7269,1774482638791,-500.0,4.793e-05,2]
[7271,1774482638801,-500.0,4.793e-05,2]
[7273,1774482638810,-2345.7380173,4.812e-05,2]
[7275,1774482638819,-58746.4705314,4.812e-05,2]
[7277,1774482638828,-150.1886719,4.812e-05,2]
[7279,1774482638838,-2318.632944,4.812e-05,2]
[7281,1774482638848,-823.0,4.911e-05,2]
[7283,1774482638858,-3444.550384,4.946e-05,2]
[7285,1774482638867,-500.0,5e-05,2]
[7287,1774482638876,-500.0,5e-05,2]
[7289,1774482638886,-500.0,5e-05,2]
[7291,1774482638895,-500.0,5e-05,2]
[7293,1774482638904,-500.0,5e-05,2]
[7295,1774482638913,-500.0,5e-05,2]
[7297,1774482638921,-500.0,5e-05,2]
[7299,1774482638931,-500.0,5e-05,2]
[7301,1774482638939,-500.0,5e-05,2]
[7303,1774482638948,-500.0,5e-05,2]
[7304,1774482638958,-500.0,5e-05,2]
[7306,1774482638967,-276.21747715,5e-05,2]
[7308,1774482638976,-500.0,5e-05,2]
[7310,1774482638985,-500.0,5e-05,2]
[7312,1774482638994,-500.0,5e-05,2]
[7314,1774482639004,-500.0,5e-05,2]
[7316,1774482639013,-500.0,5e-05,2]
[7318,1774482639022,-500.0,5e-05,2]
[7320,1774482639031,-500.0,5e-05,2]
[7322,1774482639040,-500.0,5e-05,2]
[7325,1774482639050,-500.0,5e-05,2]
[7327,1774482639059,-500.0,5e-05,2]
[7329,1774482639069,-500.0,5e-05,2]
[7330,1774482639079,-500.0,5e-05,2]
[7333,1774482639089,-500.0,5e-05,2]
[7335,1774482639099,-500.0,5e-05,2]
[7337,1774482639108,-413.30198908,5e-05,2]
[7383,1774482643892,-864.0,2.61e-05,2]
[7384,1774482643908,-1000.0,2.871e-05,2]
[7386,1774482643924,-1000.0,3.159e-05,2]
[7387,1774482643938,-244.0,3.159e-05,2]
[7388,1774482643955,-1000.0,3.474e-05,2]
[7389,1774482643970,-492.0,3.474e-05,2]
[7390,1774482644033,-1000.0,3.822e-05,2]
[7391,1774482644044,-791.0,3.822e-05,2]
[7392,1774482644053,-86.69801092,5e-05,2]
[7393,1774482644063,-500.0,5e-05,2]
[7394,1774482644073,-500.0,5e-05,2]
[7395,1774482644082,-500.0,5e-05,2]
[7396,1774482644092,-500.0,5e-05,2]
[7397,1774482644102,-500.0,5e-05,2]
[7398,1774482644111,-500.0,5e-05,2]
[7399,1774482644120,-500.0,5e-05,2]
[7400,1774482644129,-500.0,5e-05,2]
[7401,1774482644139,-500.0,5e-05,2]
[7402,1774482644148,-500.0,5e-05,2]
[7403,1774482644157,-500.0,5e-05,2]
[7404,1774482644166,-500.0,5e-05,2]
[7405,1774482644176,-500.0,5e-05,2]
[7406,1774482644185,-500.0,5e-05,2]
[7407,1774482644194,-500.0,5e-05,2]
[7408,1774482644203,-500.0,5e-05,2]
[7409,1774482644213,-500.0,5e-05,2]
[7410,1774482644223,-500.0,5e-05,2]
[7411,1774482644232,-500.0,5e-05,2]
[7412,1774482644242,-500.0,5e-05,2]
[7413,1774482644252,-500.0,5e-05,2]
[7414,1774482644262,-500.0,5e-05,2]
[7415,1774482644271,-500.0,5e-05,2]
[7416,1774482644280,-500.0,5e-05,2]
[7417,1774482644290,-483.57246049,5e-05,2]
[7418,1774482644300,-500.0,5e-05,2]
[7419,1774482644310,-500.0,5e-05,2]
[7420,1774482644319,-500.0,5e-05,2]
[7421,1774482644329,-500.0,5e-05,2]
[7422,1774482644339,-250.0,5e-05,2]
[7423,1774482644348,-2705.94783633,5.146e-05,2]
[7426,1774482646478,-1000.0,4.204e-05,2]
[7427,1774482646488,-1000.0,4.204e-05,2]
[7428,1774482646498,-1000.0,4.624e-05,2]
[7429,1774482646507,-1000.0,4.624e-05,2]
[7430,1774482646517,-738.60254767,5.146e-05,2]
[7431,1774482646526,-1000.0,5.341e-05,2]
[7432,1774482646535,-1000.0,5.341e-05,2]
[7433,1774482646544,-1000.0,5.341e-05,2]
[7434,1774482646554,-1000.0,5.341e-05,2]
[7435,1774482646563,-119.23932534,5.341e-05,2]
[7436,1774482646575,-880.76067466,5.341e-05,2]
[7437,1774482646584,-1000.0,5.341e-05,2]
[7438,1774482646593,-1000.0,5.341e-05,2]
[7439,1774482646602,-191.43155557,5.341e-05,2]
[7440,1774482646611,-1000.0,5.341e-05,2]
[7441,1774482646620,-1000.0,5.341e-05,2]
[7442,1774482646629,-1000.0,5.341e-05,2]
[7443,1774482646638,-3444.550384,5.345e-05,2]
[7444,1774482646647,-1152.0,5.403e-05,2]
[7445,1774482646657,-2318.632944,5.525e-05,2]
[7446,1774482646666,-150.1886719,5.532e-05,2]
[7447,1774482646675,-2584.77678634,5.545e-05,2]
[7448,1774482646686,-859.77359766,5.545e-05,2]
[7449,1774482646695,-500.0,5.653e-05,2]
[7450,1774482646704,-500.0,5.653e-05,2]
[7451,1774482646714,-500.0,5.653e-05,2]
[7452,1774482646723,-500.0,5.653e-05,2]
[7453,1774482646732,-500.0,5.653e-05,2]
[7454,1774482646741,-500.0,5.653e-05,2]
[7455,1774482646783,-2345.7380173,5.681e-05,2]
[7456,1774482646793,-58746.4705314,5.684e-05,2]
[7457,1774482646802,-3444.550384,5.745e-05,2]
[7458,1774482646812,-970.28671315,5.888e-05,2]
[7459,1774482646825,-529.71328685,5.888e-05,2]
[7460,1774482646834,-614.77165158,5.888e-05,2]
[7461,1774482646843,-1633.3175878,5.888e-05,2]
[7462,1774482646852,-1500.0,5.888e-05,2]
[7463,1774482646863,-1500.0,5.888e-05,2]
[7464,1774482646872,-1500.0,5.888e-05,2]
[7465,1774482646881,-1500.0,5.888e-05,2]
[7466,1774482646890,-342.02464982,5.888e-05,2]
[7467,1774482646899,-1619.61027975,5.888e-05,2]
[7468,1774482646909,-1500.0,5.888e-05,2]
[7469,1774482646918,-1613.0,5.943e-05,2]
[7470,1774482646927,-451.80715078,6.068e-05,2]
[7471,1774482646936,-151.0,6.068e-05,2]
[7472,1774482646945,-163.71046071,6.068e-05,2]
[7473,1774482646954,-1000.0,6.201e-05,2]
[7474,1774482646963,-1000.0,6.201e-05,2]
[7475,1774482646972,-1000.0,6.201e-05,2]
[7476,1774482646981,-1000.0,6.201e-05,2]
[7477,1774482646991,-679.05738914,6.201e-05,2]
[7482,1774483242839,-1200.0,5.66e-05,2]
[7483,1774483242866,-300.0,5.661e-05,2]
[7484,1774483242894,-300.0,5.661e-05,2]
[7485,1774483242921,-502.0,5.661e-05,2]
[7486,1774483242939,-1200.0,5.662e-05,2]
[7487,1774483242950,-300.0,5.662e-05,2]
[7488,1774483242962,-300.0,5.662e-05,2]
[7489,1774483242974,-502.0,5.662e-05,2]
[7490,1774483242985,-343.52388221,5.662e-05,2]
[7528,1774483832612,-1172.8690086,5.662e-05,2]
[7529,1774483832622,-502.0,5.662e-05,2]
[7531,1774483832631,-500.0,5.673e-05,2]
[7533,1774483832641,-500.0,5.673e-05,2]
[7535,1774483832650,-300.0,5.699e-05,2]
[7537,1774483832660,-205.73022367,5.7e-05,2]
[7541,1774483832702,-565.876,5.7e-05,2]
[7543,1774483832714,-28601.62904213,5.7e-05,2]
[7545,1774483832724,-150.1886719,5.7e-05,2]
[7547,1774483832734,-1159.316472,5.7e-05,2]
[7549,1774483832745,-300.0,5.774e-05,2]
[7550,1774483832754,-300.0,5.774e-05,2]
[7552,1774483832764,-300.0,5.774e-05,2]
[7554,1774483832774,-300.0,5.774e-05,2]
[7556,1774483832785,-300.0,5.774e-05,2]
[7558,1774483832795,-300.0,5.774e-05,2]
[7560,1774483832805,-300.0,5.774e-05,2]
[7561,1774483832815,-300.0,5.774e-05,2]
[7563,1774483832825,-300.0,5.774e-05,2]
[7565,1774483832834,-300.0,5.774e-05,2]
[7567,1774483832844,-300.0,5.774e-05,2]
[7569,1774483832854,-300.0,5.774e-05,2]
[7571,1774483832864,-300.0,5.774e-05,2]
[7572,1774483832874,-300.0,5.774e-05,2]
[7574,1774483832884,-300.0,5.774e-05,2]
[7576,1774483832894,-600.0,5.888e-05,2]
[7578,1774483832904,-279.99383224,6.072e-05,2]
[7580,1774483832914,-166.48369344,6.072e-05,2]
[7582,1774483832924,-222.69808109,6.101e-05,2]
[7583,1774483832934,-1957.856,6.197e-05,2]
[7585,1774483832944,-48.46552527,6.197e-05,2]
[7720,1774483838761,-102.53447473,6.197e-05,2]
[7721,1774483838771,-537.6845,6.197e-05,2]
[7722,1774483838781,-537.6845,6.197e-05,2]
[7723,1774483838791,-2150.738,6.197e-05,2]
[7724,1774483838800,-162.380719,6.197e-05,2]
[7725,1774483838810,-151.0,6.197e-05,2]
[7726,1774483838821,-445.202766,6.197e-05,2]
[7727,1774483838831,-162.380719,6.197e-05,2]
[7728,1774483838840,-151.0,6.197e-05,2]
[7730,1774483838850,-151.0,6.197e-05,2]
[7732,1774483838860,-151.0,6.197e-05,2]
[7734,1774483838869,-151.0,6.197e-05,2]
[7736,1774483838879,-151.0,6.197e-05,2]
[7738,1774483838889,-151.0,6.197e-05,2]
[7740,1774483838899,-151.0,6.197e-05,2]
[7742,1774483838909,-151.0,6.197e-05,2]
[7744,1774483838919,-151.0,6.197e-05,2]
[7746,1774483838929,-151.0,6.197e-05,2]
[7752,1774483838973,-151.0,6.197e-05,2]
[7754,1774483838983,-162.380719,6.197e-05,2]
[7756,1774483838994,-151.0,6.197e-05,2]
[7759,1774483839004,-188.97221868,6.197e-05,2]
[7761,1774483839013,-151.0,6.197e-05,2]
[7763,1774483839023,-151.0,6.197e-05,2]
[7765,1774483839033,-151.0,6.197e-05,2]
[7767,1774483839042,-151.0,6.197e-05,2]
[7769,1774483839052,-151.0,6.197e-05,2]
[7771,1774483839062,-151.0,6.197e-05,2]
[7773,1774483839072,-500.0,6.2e-05,2]
[7775,1774483839082,-500.0,6.2e-05,2]
[7777,1774483839092,-500.0,6.2e-05,2]
[7779,1774483839102,-500.0,6.2e-05,2]
[7781,1774483839112,-252.62174772,6.2e-05,2]
[7783,1774483839121,-500.0,6.2e-05,2]
[7785,1774483839132,-331.50805117,6.2e-05,2]
[7787,1774483839141,-1000.0,6.201e-05,2]
[7789,1774483839153,-1000.0,6.201e-05,2]
[7791,1774483839163,-1000.0,6.201e-05,2]
[7793,1774483839173,-1000.0,6.201e-05,2]
[7795,1774483839183,-1000.0,6.201e-05,2]
[7797,1774483839193,-1000.0,6.201e-05,2]
[7799,1774483839202,-1000.0,6.201e-05,2]
[7801,1774483839212,-1000.0,6.201e-05,2]
[7803,1774483839222,-1000.0,6.201e-05,2]
[7805,1774483839232,-1000.0,6.201e-05,2]
[7808,1774483839243,-1000.0,6.201e-05,2]
[7810,1774483839254,-1000.0,6.201e-05,2]
[7812,1774483839264,-1000.0,6.201e-05,2]
[7813,1774483839273,-1000.0,6.201e-05,2]
[7816,1774483839283,-1000.0,6.201e-05,2]
[7818,1774483839293,-1000.0,6.201e-05,2]
[7820,1774483839303,-956.0659256,6.201e-05,2]
[7822,1774483839313,-340.16313277,6.221e-05,2]
[7824,1774483839323,-1000.0,6.221e-05,2]
[7826,1774483839333,-830.87967997,6.251e-05,2]
[7828,1774483839345,-242.72165994,6.251e-05,2]
[7830,1774483839356,-2030.296672,6.252e-05,2]
[7832,1774483839365,-557.5788265,6.252e-05,2]
[7834,1774483839375,-420.0,6.269e-05,2]
[7836,1774483839385,-220.8381732,6.307e-05,2]
[8557,1774483847157,-1232.50548995,6.307e-05,2]
[8558,1774483847169,-652.07398571,6.307e-05,2]
[8559,1774483847179,-578.20924308,6.307e-05,2]
[8560,1774483847188,-2089.16216799,6.351e-05,2]
[8561,1774483847202,-2183.31810187,6.362e-05,2]
[8562,1774483847212,-599.60298507,6.362e-05,2]
[8563,1774483847222,-2264.10087164,6.417e-05,2]
[8564,1774483847231,-621.78829552,6.417e-05,2]
[8565,1774483847240,-1199.13929969,6.472e-05,2]
[8566,1774483847253,-1148.7333042,6.472e-05,2]
[8567,1774483847262,-644.79446246,6.472e-05,2]
[8568,1774483847272,-720.0,6.477e-05,2]
[8569,1774483847281,-1809.58763553,6.527e-05,2]
[8707,1774485032801,-218.73951869,5.146e-05,2]
[8709,1774485032810,-170.22170177,5.146e-05,2]
[8711,1774485032819,-218.73951869,5.305e-05,2]
[8713,1774485032828,-170.22170177,5.305e-05,2]
[8715,1774485032837,-170.22170177,5.469e-05,2]
[8717,1774485032848,-170.22170177,5.638e-05,2]
[8719,1774485032857,-170.22170176,5.812e-05,2]
[8721,1774485032867,-300.0,6.262e-05,2]
[8723,1774485032876,-180.16045378,6.262e-05,2]
[8725,1774485032887,-119.83954622,6.262e-05,2]
[8727,1774485032900,-300.0,6.262e-05,2]
[8729,1774485032909,-300.0,6.262e-05,2]
[8731,1774485032919,-1094.0,6.262e-05,2]
[8733,1774485032927,-500.0,6.263e-05,2]
[8735,1774485032936,-500.0,6.263e-05,2]
[8737,1774485032945,-500.0,6.263e-05,2]
[8739,1774485032955,-500.0,6.263e-05,2]
[8741,1774485032964,-500.0,6.263e-05,2]
[8743,1774485032973,-250.2913053,6.283e-05,2]
[8745,1774485032982,-7451.8947113,6.284e-05,2]
[8747,1774485032991,-1707.3094687,6.284e-05,2]
[8749,1774485033000,-527.4476233,6.284e-05,2]
[8751,1774485033009,-2198.07097403,6.284e-05,2]
[8944,1774485042386,-1153.66304147,6.284e-05,2]
[8946,1774485042395,-69226.5795633,6.284e-05,2]
[8952,1774485042439,-150.188672,6.284e-05,2]
[8954,1774485042449,-116263.47963981,6.48e-05,2]
[9165,1774485044308,-418.93857618,6.48e-05,2]
[9443,1774485047077,-10976.38954665,6.48e-05,2]
[9449,1774485047119,-343948.07719272,6.48e-05,2]
[10001,1774485062309,-6077.5274628,6.48e-05,2]
[10045,1774486238063,-291.8563593,2.735e-05,2]
[10046,1774486238073,-250.0,3.219e-05,2]
[10047,1774486238082,-2092.47071585,5e-05,2]
[10049,1774486238091,-1471.67292487,5.1e-05,2]
[10050,1774486238164,-2996.74039766,5.1e-05,2]
[10051,1774486238173,-300.0,5.199e-05,2]
[10052,1774486238183,-4963.30645579,5.2e-05,2]
[10053,1774486238193,-300.0,5.303e-05,2]
[10054,1774486238202,-300.0,5.303e-05,2]
[10055,1774486238212,-300.0,5.303e-05,2]
[10057,1774486238221,-300.0,5.303e-05,2]
[10059,1774486238230,-300.0,5.303e-05,2]
[10061,1774486238239,-300.0,5.303e-05,2]
[10063,1774486238248,-300.0,5.303e-05,2]
[10065,1774486238258,-300.0,5.303e-05,2]
[10067,1774486238266,-300.0,5.303e-05,2]
[10068,1774486238275,-300.0,5.303e-05,2]
[10070,1774486238284,-300.0,5.303e-05,2]
[10072,1774486238293,-300.0,5.303e-05,2]
[10074,1774486238303,-300.0,5.303e-05,2]
[10075,1774486238312,-300.0,5.303e-05,2]
[10076,1774486238320,-300.0,5.303e-05,2]
[10077,1774486238329,-500.0,5.31e-05,2]
[10078,1774486238339,-500.0,5.31e-05,2]
[10079,1774486238348,-500.0,5.31e-05,2]
[10080,1774486238356,-500.0,5.31e-05,2]
[10081,1774486238366,-500.0,5.31e-05,2]
[10082,1774486238375,-500.0,5.31e-05,2]
[10083,1774486238384,-500.0,5.31e-05,2]